Cogmind - Beta 13 @@@ ROGUE MODE // 2024.04.09 @ 21:45:33 Player: Bace Troncons Result: Destroyed by HE-GVU(R) with Subdweller Machine Gun Performance ------------- Evolutions (0) 0 Regions Visited (2) 400 Robots Destroyed (2) 10 Value Destroyed (74) 74 Prototype IDs (0) 0 Alien Tech Used (0) 0 Bonus (0) 0 TOTAL SCORE: 484 Bonus ------- None Cogmind --------- Core Integrity 0/250 Matter 292/300 Energy 85/100 System Corruption 0% Temperature Cool (0) Movement Core (700) Ox13 Location -10/Subcaves Parts ------- > --- POWER (1) -------- (None) > --- PROPULSION (2) --- (None) > --- UTILITY (2) ------ High-capacity Storage Unit > --- WEAPON (2) ------- (None) > --- INVENTORY (20) --- Light Ion Engine Disposable Heat Sink Scrap Shield Tractor Beam Medium Laser Light Assault Rifle Peak State ------------ > --- POWER ------------ Ion Engine > --- PROPULSION ------- Aluminum Leg Aluminum Leg > --- UTILITY ---------- High-capacity Storage Unit Weapon Shielding > --- WEAPON ----------- Assault Rifle Flamer > --- INVENTORY -------- Light Ion Engine Subdweller Power Source Aluminum Leg Wheel Wheel Wheel Wheel Disposable Heat Sink Scrap Shield Tractor Beam Riot Gun Medium Laser Light Assault Rifle [Rating: 10] Favorites ----------- Power Ion Engine Engine Ion Engine Propulsion Aluminum Leg Leg Aluminum Leg Wheel Wheel Utility High-capacity Storage Unit Storage High-capacity Storage Unit Protection Weapon Shielding Weapon Assault Rifle Energy Gun Riot Gun Ballistic Gun Assault Rifle Special Weapon Flamer Build | -11 -10 -10 ------- Run | Yrd Mat Sub Slots Evolved . | . . . Power . | . . . Propulsion . | . . . Utility . | . . . Weapon . | . . . Parts Attached 14 | 5 4 5 Power 4 | . 2 2 Engine 4 | . 2 2 Core . | . . . Reactor . | . . . Propulsion 4 | 3 . 1 Treads . | . . . Leg 3 | 2 . 1 Wheel 1 | 1 . . Hover . | . . . Flight . | . . . Utility 2 | . 2 . Device . | . . . Storage 1 | . 1 . Processor . | . . . Hackware . | . . . Protection 1 | . 1 . Artifact . | . . . Weapon 4 | 2 . 2 Energy Gun 1 | . . 1 Energy Cannon . | . . . Ballistic Gun 2 | 2 . . Ballistic Cannon . | . . . Launcher . | . . . Special Weapon 1 | . . 1 Impact Weapon . | . . . Slashing Weapon . | . . . Piercing Weapon . | . . . Special Melee Weapon . | . . . Unidentified Prototypes . | . . . Parts Lost 9 | . . 9 Power 2 | . . 2 Propulsion 3 | . . 3 Utility 1 | . . 1 Weapon 3 | . . 3 Highest Loss Streak 9 | . . 9 To Critical Strikes . | . . . Average Slot Usage (%) 89 | . 84 97 Engine 10 | . 7 13 Leg 27 | . 28 27 Storage 13 | . 12 14 Protection 9 | . 6 13 Ballistic Gun 23 | . 28 16 Special Weapon 4 | . . 10 Naked Turns . | . . . Heaviest Build 51 | 3 49 51 Greatest Support 20 | 20 20 20 Greatest Overweight (x) 14 | . 2 14 Average Overweight (x) 1 | . 1 2 Largest Inventory Capacity 20 | 5 20 20 Average Capacity 17 | 5 18 20 Most Carried 14 | 5 11 14 Average Carried 8 | 3 6 10 Final Capacity 20 | 5 20 20 Final Carried 8 | 5 8 7 Class Distribution -------------------- 100% | Mutant Dominant Class ---------------- Mutant | -10/Materials Mutant | -10/Subcaves Resources | -11 -10 -10 ----------- Run | Yrd Mat Sub Matter Collected 327 | 262 . 65 Remotely . | . . . Salvage Created 79 | 45 . 34 Parts 2 | 1 . 1 Haulers Intercepted . | . . . Recyclers Shooed . | . . . Parts Field Recycled . | . . . Retrieved Matter . | . . . Parts Self-Destructed 25 | . . 25 Prevented . | . . . Kills | -11 -10 -10 ------- Run | Yrd Mat Sub Combat Hostiles Destroyed 2 | 1 . 1 Guns 2 | 1 . 1 Classes Destroyed 2 | 1 . 1 Grunt 1 | 1 . . Subdweller 1 | . . 1 Best Kill Streak 1 | 1 . 1 Combat Bots Only 1 | 1 . 1 Max Kills in Single Turn 1 | 1 . 1 Gunslinging . | . . . Exploded . | . . . Melee . | . . . Uniques/NPCs Destroyed . | . . . Combat | -11 -10 -10 -------- Run | Yrd Mat Sub Hostile Shots Fired 71 | 4 . 67 Missed 21 | . . 21 Damage Taken 1029 | 46 . 983 Core 263 | 22 . 241 Absorbed by Shields . | . . . Redirected to Shielding 51 | . . 51 Core Remaining (%) 91 | 91 . . Volleys Fired 10 | 3 2 5 Largest 2 | 2 2 2 Hottest 120 | 40 40 120 Shots Fired 19 | 6 4 9 Gun 18 | 6 4 8 Cannon . | . . . Launcher . | . . . Special 1 | . . 1 Kinetic 15 | 6 4 5 Thermal 1 | . . 1 Explosive . | . . . Electromagnetic 3 | . . 3 Robot Hit Streak 11 | 1 1 11 Robot Miss Streak 2 | 2 1 1 Penetration Max . | . . . Secondary Targets 1 | . . 1 Max Gunslinging Chain 1 | . . 1 Shots Hit Robots 12 | 2 2 8 Core Hits 5 | 1 . 4 Critical Kills . | . . . Critical Parts Destroyed . | . . . Critical Strikes . | . . . Melee Attacks . | . . . Impact . | . . . Slashing . | . . . Piercing . | . . . Sneak Attacks . | . . . Combat Hostiles . | . . . Follow-up Attacks . | . . . Damage Inflicted 146 | 29 16 101 Guns 136 | 29 16 91 Cannons . | . . . Explosions . | . . . Melee . | . . . Ramming . | . . . Kinetic 77 | 29 16 32 Thermal 10 | . . 10 Explosive . | . . . Electromagnetic 59 | . . 59 Impact . | . . . Slashing . | . . . Piercing . | . . . Highest Corruption . | . . . Average Corruption . | . . . Corruption Purged . | . . . Corruption Blocked . | . . . Overload Shots . | . . . Overflow Damage . | . . . Projectiles . | . . . Explosions . | . . . Melee . | . . . Knockbacks . | . . . Impact . | . . . Kinetic . | . . . Secondary . | . . . Self-Inflicted Damage . | . . . Shots . | . . . Rammed . | . . . Targets Rammed . | . . . Kicked . | . . . Crushed . | . . . Highest Temperature 2 | 2 . . Average Temperature 1 | 1 . . Received Heat Transfer 54 | 24 . 30 Siege Activations . | . . . Robots Corrupted . | . . . Combat Hostiles . | . . . Parts Fried . | . . . Impact Corruptions . | . . . Robots Melted . | . . . Combat Hostiles . | . . . Parts Melted . | . . . Heat Transferred 80 | . . 80 Parts Sabotaged . | . . . Parts Stolen . | . . . Parts Stripped . | . . . Power Chain Reactions . | . . . Alert | -11 -10 -10 ------- Run | Yrd Mat Sub Peak Influence 28 | 20 28 . Initial 13 | . 13 . Average 16 | 1 19 . Maximum Alert Level . | . . . Low Security (%) 100 | 100 100 . Level 1 . | . . . Level 2 . | . . . Level 3 . | . . . Level 4 . | . . . Level 5 . | . . . High Security . | . . . Max Security . | . . . Squads Dispatched . | . . . Investigation . | . . . Extermination . | . . . Reinforcement . | . . . Assault . | . . . Garrison . | . . . Intercept . | . . . Searches Triggered . | . . . Construction Impeded . | . . . Haulers Reinforced . | . . . Active Scanning Responses . | . . . Cargo Convoy Interrupts . | . . . Stealth | -11 -10 -10 --------- Run | Yrd Mat Sub Distress Signals . | . . . Communications Jammed . | . . . Distress Signals . | . . . Times Spotted 15 | 1 3 11 Peak Tracking Total 6 | 1 3 6 Tactical Retreats . | . . . Traps | -11 -10 -10 ------- Run | Yrd Mat Sub Traps Triggered . | . . . Indirectly . | . . . Trap Hack Attempts . | . . . Triggered . | . . . Disarmed . | . . . Reprogrammed . | . . . Reused . | . . . Traps Extracted . | . . . Installed . | . . . Triggered . | . . . Machines | -11 -10 -10 ---------- Run | Yrd Mat Sub Machines Disabled . | . . . Max in Single Turn . | . . . Machines Repaired . | . . . Machines Dismantled . | . . . Machines Sabotaged . | . . . Overloaded Fab Kills . | . . . Hacking | -11 -10 -10 --------- Run | Yrd Mat Sub Machines Accessed 2 | . 2 . Terminals 1 | . 1 . Fabricators . | . . . Repair Stations . | . . . Recycling Units 1 | . 1 . Scanalyzers . | . . . Garrison Access . | . . . Total Hacks 7 | . 7 . Successful 5 | . 5 . Failed 2 | . 2 . Catastrophic 1 | . 1 . Database Lockouts . | . . . Manual 1 | . 1 . Terminals 2 | . 2 . Fabricators . | . . . Repair Stations . | . . . Recycling Units 5 | . 5 . Scanalyzers . | . . . Garrison Access . | . . . Terminal Hacks 1 | . 1 . Record 1 | . 1 . Fabricator Hacks . | . . . Repair Station Hacks . | . . . Recycling Unit Hacks 4 | . 4 . Recycle Component 4 | . 4 . Scanalyzer . | . . . Garrison Access Hacks . | . . . Unauthorized Hacks . | . . . Terminals . | . . . Fabricators . | . . . Repair Stations . | . . . Recycling Units . | . . . Scanalyzers . | . . . Garrison Access . | . . . Data Cores Recovered . | . . . Used . | . . . Hacking Detections 2 | . 2 . Full Trace Events 1 | . 1 . Feedback Events . | . . . Feedback Blocked . | . . . Robot Schematics Acquired . | . . . Robots Built . | . . . Authchips . | . . . Time . | . . . Total Robot Build Rating . | . . . Part Schematics Acquired . | . . . Parts Built . | . . . Authchips . | . . . Time . | . . . Total Part Build Rating . | . . . Parts Repaired . | . . . Time . | . . . Parts Recycled 4 | . 4 . Recycled Matter . | . . . Retrieved Matter . | . . . Retrieved Components . | . . . Parts Scanalyzed . | . . . Part Schematics Acquired . | . . . Parts Damaged . | . . . Bothacking | -11 -10 -10 ------------ Run | Yrd Mat Sub Used RIF Installer . | . . . Robots Hacked . | . . . Non-combat . | . . . Combat . | . . . Robot Hacks Applied . | . . . Relay Couplers Released . | . . . Fabnet Peak Effective % . | . . . Robots Rewired . | . . . Allies Hacked . | . . . Hacks Repelled . | . . . Allies | -11 -10 -10 -------- Run | Yrd Mat Sub Total Allies . | . . . Largest Group . | . . . Highest-Rated Group . | . . . Highest-Rated Ally . | . . . Total Orders . | . . . Ally Attacks . | . . . Total Damage . | . . . Kills . | . . . Allies Corrupted . | . . . Allies Melted . | . . . Intel | -11 -10 -10 ------- Run | Yrd Mat Sub Robot Analysis Total . | . . . Derelict Logs Recovered . | . . . Drone Launches . | . . . Drone Recoveries . | . . . Exploration | -11 -10 -10 ------------- Run | Yrd Mat Sub Turns Passed 995 | 102 508 385 Spaces Moved 428 | 79 212 137 Core 24 | 23 . 1 Treads . | . . . Legs 404 | 56 212 136 Wheels . | . . . Hover . | . . . Flight . | . . . Fastest Speed 50 | 50 120 260 Average Speed 216 | 99 230 263 Slowest Speed 750 | 120 260 750 Overloaded Moves . | . . . Propulsion Burnouts . | . . . Robots Hopped . | . . . Cave-ins Triggered . | . . . Exploration Rate (%) 13 | 5 29 7 Regions Visited 2 Branch Regions 1 Pre-discovered Areas . | . . . Known Exits Taken . | . . . Unknown Exits Taken 2 | 1 1 . Scrap Searched 1 | . . 1 Spaces Dug . | . . . Terrain Destroyed . | . . . Melee . | . . . Projectile . | . . . AOE . | . . . Terrain Rammed . | . . . Walls Destroyed . | . . . Machines Disabled . | . . . Actions | -11 -10 -10 --------- Run | Yrd Mat Sub Total 481 | 96 229 156 Wait 1 | 1 . . Move 426 | 78 211 137 Hop . | . . . Pick Up 25 | 9 11 5 Fast Attach . | . . . Attach 10 | 4 3 3 Detach . | . . . Swap 4 | 1 1 2 Drop 5 | . 1 4 Fire 10 | 3 2 5 Melee . | . . . Ram . | . . . Kick . | . . . Crush . | . . . Escape Stasis . | . . . Rewire . | . . . Trap . | . . . Miscellaneous . | . . . Route ------- -11/Scrapyard -10/Materials (discovered 2 exits: [*Min] / [*Sub]) -10/Subcaves (discovered 1 exit: [*Mat]) History --------- Turn | Location | Event 2 | -11/Scrapyard | Met Revision 17 79 | -11/Scrapyard | Discovered new exit (range 8) 103 | -11/Scrapyard | Entered Materials 313 | -10/Materials | Build established: Mutant 543 | -10/Materials | Discovered new exit (range 7) 605 | -10/Materials | Discovered new exit (range 3) 611 | -10/Materials | Entered Subcaves 649 | -10/Subcaves | Discovered new exit (range 12) 927 | -10/Subcaves | Ambushed by swarm of Subdwellers 990 | -10/Subcaves | Core integrity fell below 50% 995 | -10/Subcaves | Core integrity fell below 20% 996 | -10/Subcaves | Destroyed by HE-GVU(R) with Subdweller Machine Gun Last Messages --------------- 00935_ HV Slug penetrates Wall. 00938_ 6F-TMH(R) suffers critical hit (Destroy). 00938_ 6F-TMH(R) knocked back. 00941_ 6F-TMH(R) suffers critical hit (Destroy). 00941_ 6F-TMH(R) destroyed. 00944_ HV Slug penetrates 6J-BNZ(R). 00944_ 6J-BNZ(R) suffers critical hit (Destroy). Q2-X2O(R) emerges from concealment. 00960_ Aluminum Leg destroyed. 00969_ Flamer destroyed. 00974_ Weapon Shielding destroyed. 00982_ KR-MZE(R) destroyed. 00982_ Switching to secondary target: DN-RGZ(R). 00984_ Aluminum Leg destroyed. 00987_ Ion Engine destroyed. 00988_ Aluminum Leg destroyed. 00988_ Riot Gun destroyed. 00990_ Assault Rifle destroyed. 00993_ Acquired 7 matter. 00994_ Sub. Power Source destroyed. Map ----- +----------------------------------------------------+ | ?????????????####????????????????### ##??????????? | | ???????????????????????????????????## ##?????????? | | ?????????????????????????????????###"# #?????????? | | ?????????????????????????????????# ""## #????????? | | ?????????????????????????????????##"##?# #???????? | | ??????????????????????????????????# ##??# #??????? | | ??????????????????????????????????# ##??# #?????? | | ??????????????????????????????????#! #???# #????? | | ?????????????????????????????????##%& #????# #???? | | ????????????????????????????????##=%!%#?????# #??? | | ????????????????????????????????# %!& ##????? #??? | | ???????????????????????????????## !%&""##????? ??? | | ?????????????????????????????### * """#?????? ?? | | ????????????????????????????## ##??????? ? | | ????????????????????????????# ""##?????????? | | ????????????????????????????# """#??????????? | | ????????????????????????????# """" #??????????? | | ???????????????????????????## ## ""#??????????? | | ????????????????????##????## #### "##??????????? | | ????????????????????# ???# ###?###???????????? | | ????????????????????? ???# ##??????????????? | | ?????????????????????# ??## #??????????????? | | ????????????????????## %???### #??????????????? | | ????????????????????# ????# #??????????????? | | ?????????????????????# ###?# #??????????????? | | ????????????????????## @ ### ##??????????????? | | ????????????????????#"" R #???????????????? | | ???????????????????# "" RRRR "" #???????????????? | | ?????????????????"" "" R= "" ##???????????????? | | ?????????????????"" %"" ""##????????????????? | | ?????????????????"" ##"" ##""##?????????????????? | | ????????????????? ?#"" """#??????????????????? | | ????????????????### ??# """""""??????????????????? | | ?????????????????? ???#" ###"""??????????????????? | | ?????????????????#????#" ??##"???????????????????? | | ?????????????????????? ""????????????????????????? | | ???????????????????????""????????????????????????? | | ?????????????????????????????????????????????????? | | ?????????????????????????????????????????????????? | | ?????????????????????????????????????????????????? | | ?????????????????????????????????????????????????? | | ?????????????????????????????????????????????????? | | ?????????????????????????????????????????????????? | | ?????????????????????????????????????????????????? | | ?????????????????????????????????????????????????? | | ?????????????????????????????????????????????????? | | ?????????????????????????????????????????????????? | | ?????????????????????????????????????????????????? | | ?????????????????????????????????????????????????? | | ?????????????????????????????????????????????????? | +----------------------------------------------------+ Best States ------------- Heat Dissipation 25 Energy Generation 10 Energy Capacity 250 Matter Stores 300 Matter Capacity 300 Sight Range 16 Terrain Scan Density 10 Weapon Shielding 33 Evasion (%) 55 Item Schematics ----------------- None Robot Schematics ------------------ None Fabricated ------------ Nothing Alien Tech Used ----------------- None Achievements -------------- None Challenges ------------ None Game ------ Seed ControlLongswordSlayer Manual? 0 Play Time 00:14:29 Cumulative 13.0 hours Start 2024.04.09 @ 21:28:58 End 2024.04.09 @ 21:45:33 Sessions 1 Manual Loads 0 Difficulty Rogue Special Mode None Game No. 28 Rogue 28 Adventurer 0 Explorer 0 Win Type - Total 0 Types 0/0/0/0/0/0/0/0/0 Lore% 17 Gallery% 19 Achievement% 16 Wizard Run 0 Options --------- Layout 1 ASCII 0 Keyboard 1 Movement Numpad Keybinds 0 Fullscreen 1 Font 24/Smallcaps Map View 50x35 Zoom Use 0% Tactical HUD 1 Map Filters NONE Filters NONE Steam 1 RUN: 1d137312-a801-4752-9fef-4b40abb8d331